Workbook

Sheet Лист2
K2: коэфициент удорожания работ : | L2: 1.3
C3: Таблица длинная…
A5: Шифр | C5: Название | D5: Ед. изм. | E5: Кол-во | F5: Цена | G5: Стоимость
A6: 2-36 | C6: Пробивка сквозных отверстий диаметром до 50 мм в кирпиче б=250 мм. | D6: шт. | E6: 1 | F6: =VLOOKUP(A6,база!A4:G32,6,0)*L2 -> 54.6 | G6: =(E6*F6)*$L$2 -> 70.98
B7: 309 | C7: Шнек 400 мм | D7: шт. | E7: =E6*0.08 -> 0.08 | F7: 494 | G7: =(E7*F7)*$L$2 -> 51.376
A8: 2-37 | C8: Пробивка сквозных отверстий диаметром до 120 мм в кирпиче б=250 мм. | D8: шт. | E8: 1 | F8: =VLOOKUP(A8,база!A6:G34,6,0)*L4 -> 0 | G8: 0
B9: 309 | C9: Шнек 400 мм | D9: шт. | E9: =E8*0.12 -> 0.12 | F9: 494 | G9: 77.064
A10: 2-45 | C10: Пробивка сквозных отверстий диаметром до 50 мм в бетоне до 500 мм. | D10: шт. | E10: 2 | F10: 156 | G10: 405.6
B11: 190 | C11: Пика к отбойному молотку 400 мм | D11: шт. | E11: =E10 -> 2 | F11: 488 | G11: 1268.8
A12: 2-46 | C12: Пробивка сквозных отверстий диаметром до 120 мм в бетоне толщиной до 500 мм | D12: шт. | E12: 1 | F12: =169*L2 -> 219.7 | G12: 285.61
B13: 190 | C13: Пика к отбойному молотку 400 мм | D13: шт. | E13: =E12*1.5 -> 1.5 | F13: 488 | G13: 951.6
A14: 2-47 | C14: Пробивка сквозных отверстий под коммуникации 130х130-300х300 мм в бетоне толщиной до 500 мм | D14: шт. | E14: 1 | F14: =208*L2 -> 270.4 | G14: 351.52
B15: 190 | C15: Пика к отбойному молотку 400 мм | D15: шт. | E15: =E14*1.8 -> 1.8 | F15: 488 | G15: 1141.92
A16: 2-41 | C16: Пробивка сквозных отверстий в капитальной кирпичной стене под коммуникации 130х130-300х300 мм б=510 мм | D16: шт. | E16: 1 | F16: =169*L2 -> 219.7 | G16: 285.61
B17: 190 | C17: Пика к отбойному молотку 400 мм | D17: шт. | E17: =E16*0.2 -> 0.2 | F17: 488 | G17: 126.88
C18: работа: | G18: =SUM(G6,G8,G10,G12,G14,G16) -> 1399.32
C19: материалы: | G19: =SUM(G7,G9,G11,G13,G15,G17) -> 3617.64
C20: всего: | G20: =SUM(G18:G19) -> 5016.96

Sheet база
C2: отрывок базы
A4: 2-36 | C4: Пробивка сквозных отверстий диаметром до 50 мм в кирпиче б=250 мм. | D4: шт. | E4: 1 | F4: 42 | G4: =E4*F4 -> 42
B5: 309 | C5: Шнек 400 мм | D5: шт. | E5: =E4*0.08 -> 0.08 | F5: 494 | G5: 39.52
A6: 2-37 | C6: Пробивка сквозных отверстий диаметром до 120 мм в кирпиче б=250 мм. | D6: шт. | E6: 1 | F6: 78 | G6: 78
B7: 309 | C7: Шнек 400 мм | D7: шт. | E7: =E6*0.12 -> 0.12 | F7: 494 | G7: 59.28
A8: 2-38 | C8: Пробивка сквозных отверстий в капитальной кирпичной стене под коммуникации 130х130-300х300 мм б=250 мм | D8: шт. | E8: 1 | F8: 110 | G8: 110
B9: 190 | C9: Пика к отбойному молотку 400 мм | D9: шт. | E9: =E8*0.15 -> 0.15 | F9: 488 | G9: 73.2
A10: 2-39 | C10: Пробивка сквозных отверстий диаметром до 50 мм в кирпиче б=510 мм. | D10: шт. | E10: 1 | F10: 78 | G10: 78
B11: 309 | C11: Шнек 400 мм | D11: шт. | E11: =E10*0.12 -> 0.12 | F11: 494 | G11: 59.28
A12: 2-40 | C12: Пробивка сквозных отверстий диаметром до 120 мм в кирпиче б=510 мм. | D12: шт. | E12: 1 | F12: 109 | G12: 109
B13: 309 | C13: Шнек 400 мм | D13: шт. | E13: =E12*0.15 -> 0.15 | F13: 494 | G13: 74.1
A14: 2-41 | C14: Пробивка сквозных отверстий в капитальной кирпичной стене под коммуникации 130х130-300х300 мм б=510 мм | D14: шт. | E14: 1 | F14: 169 | G14: 169
B15: 190 | C15: Пика к отбойному молотку 400 мм | D15: шт. | E15: =E14*0.2 -> 0.2 | F15: 488 | G15: 97.6
A16: 2-42 | C16: Пробивка сквозных отверстий диаметром до 50 мм в бетоне до 250 мм. | D16: шт. | E16: 1 | F16: 65 | G16: 65
B17: 190 | C17: Пика к отбойному молотку 400 мм | D17: шт. | E17: =E16*0.2 -> 0.2 | F17: 488 | G17: 97.6
A18: 2-43 | C18: Пробивка сквозных отверстий диаметром до 120 мм в бетоне толщиной до 250 мм | D18: шт. | E18: 1 | F18: 130 | G18: 130
B19: 190 | C19: Пика к отбойному молотку 400 мм | D19: шт. | E19: =E18*0.3 -> 0.3 | F19: 488 | G19: 146.4
A20: 2-44 | C20: Пробивка сквозных отверстий под коммуникации 130х130-300х300 мм в бетоне толщиной до 250 мм | D20: шт. | E20: 1 | F20: 156 | G20: 156
B21: 190 | C21: Пика к отбойному молотку 400 мм | D21: шт. | E21: =E20*0.35 -> 0.35 | F21: 488 | G21: 170.8
A22: 2-45 | C22: Пробивка сквозных отверстий диаметром до 50 мм в бетоне до 500 мм. | D22: шт. | E22: 1 | F22: 156 | G22: 156
B23: 190 | C23: Пика к отбойному молотку 400 мм | D23: шт. | E23: =E22 -> 1 | F23: 488 | G23: 488
A24: 2-46 | C24: Пробивка сквозных отверстий диаметром до 120 мм в бетоне толщиной до 500 мм | D24: шт. | E24: 1 | F24: 169 | G24: 169
B25: 190 | C25: Пика к отбойному молотку 400 мм | D25: шт. | E25: =E24*1.5 -> 1.5 | F25: 488 | G25: 732
A26: 2-47 | C26: Пробивка сквозных отверстий под коммуникации 130х130-300х300 мм в бетоне толщиной до 500 мм | D26: шт. | E26: 1 | F26: 208 | G26: 208
B27: 190 | C27: Пика к отбойному молотку 400 мм | D27: шт. | E27: =E26*1.8 -> 1.8 | F27: 488 | G27: 878.4
A28: 2-48 | C28: Пробивка сквозных отверстий диаметром до 50 мм в бетоне до 1000 мм. | D28: шт. | E28: 1 | F28: 168 | G28: 168
B29: 190 | C29: Пика к отбойному молотку 400 мм | D29: шт. | E29: =E28*1.8 -> 1.8 | F29: 488 | G29: 878.4
A30: 2-49 | C30: Пробивка сквозных отверстий диаметром до 120 мм в бетоне толщиной до 1000 мм | D30: шт. | E30: 1 | F30: 208 | G30: 208
B31: 190 | C31: Пика к отбойному молотку 400 мм | D31: шт. | E31: =E30*2.5 -> 2.5 | F31: 488 | G31: 1220
A32: 2-50 | C32: Пробивка сквозных отверстий под коммуникации 130х130-300х300 мм в бетоне толщиной до 1000 мм | D32: шт. | E32: 1 | F32: 273 | G32: 273
